bitfinex-derivatives/quotes_BTCF0:USTF0_20250213
["timestamp","ask_amount","ask_price","bid_price","bid_amount"]
[1739470807469,0.43549988,95433.0,95432.0,0.00115715]
[1739470807470,0.43649988,95433.0,95432.0,0.00115715]
[1739470809272,0.43549988,95433.0,95432.0,0.00115715]
[1739470809473,0.20414447,95433.0,95432.0,0.00115715]
[1739470810970,0.0681,95447.0,95432.0,0.36195715]
[1739470811175,0.0781,95447.0,95446.0,0.2095118]
[1739470812067,0.09890832,95453.0,95452.0,0.2094986]
[1739470812269,0.09890832,95453.0,95452.0,0.5702986]
[1739470812669,0.09890832,95453.0,95452.0,1.4503986]
[1739470812670,6e-08,95453.0,95452.0,1.4503986]
[1739470812873,0.23308838,95466.0,95465.0,0.2094701]
[1739470813169,0.2033,95494.0,95472.0,0.2094547]
[1739470813371,0.00015715,95475.0,95472.0,0.2094547]
[1739470813567,0.2033,95494.0,95466.0,0.5801]
[1739470813765,0.2033,95494.0,95465.0,0.7216]
[1739470813766,0.2033,95494.0,95493.0,0.2094087]
[1739470813983,0.3608,95504.0,95493.0,0.2094087]
[1739470814178,0.001,95494.0,95493.0,0.2094087]
[1739470814376,0.011,95494.0,95493.0,0.2094087]
[1739470814865,0.01,95494.0,95493.0,0.2094087]
[1739470815374,0.00015715,95503.0,95502.0,0.2093889]
[1739470815574,0.01115715,95503.0,95502.0,0.2093889]
[1739470816079,0.00157098,95525.0,95516.0,0.2093583]
[1739470816291,0.00157098,95525.0,95524.0,0.2093407]
[1739470816475,0.00157098,95525.0,95512.0,0.3608]
[1739470816476,0.001,95521.0,95516.0,0.2093569]
[1739470816779,0.001,95520.0,95519.0,0.2093517]
[1739470817281,0.00157098,95525.0,95524.0,0.2093407]
[1739470817580,0.01257098,95525.0,95524.0,0.2093407]
[1739470817783,0.01,95525.0,95524.0,0.2093407]
[1739470818977,0.016,95525.0,95524.0,0.2093407]
[1739470819279,0.1385,95537.0,95524.0,0.5801]
[1739470819581,0.1485,95537.0,95527.0,0.18982762]
[1739470819785,0.3608,95561.0,95529.0,0.3608]
[1739470820077,0.001,95548.0,95547.0,0.2092903]
[1739470820278,0.0646,95549.0,95547.0,0.2092903]
[1739470820479,0.001,95548.0,95547.0,0.2092903]
[1739470821885,0.008,95548.0,95547.0,0.2092903]
[1739470822473,0.008,95548.0,95547.0,0.23105014]
[1739470822673,0.015,95548.0,95547.0,0.23205014]
[1739470822876,0.18629538,95550.0,95549.0,0.209286]
[1739470823079,0.18525537,95550.0,95549.0,0.209286]
[1739470824373,0.18825537,95550.0,95549.0,0.209286]
[1739470824574,0.1373,95560.0,95559.0,0.2092641]
[1739470825673,0.1373,95560.0,95550.0,0.18982762]
[1739470825674,0.4320498,95560.0,95550.0,0.18982762]
[1739470825870,0.001,95551.0,95550.0,0.18982762]
[1739470826072,0.001,95551.0,95550.0,0.2092838]
[1739470826288,0.1433,95560.0,95559.0,0.2092641]
[1739470826491,0.1533,95560.0,95559.0,0.2092641]
[1739470826880,0.1553,95560.0,95559.0,0.2092641]
[1739470827085,0.5171,95560.0,95554.0,0.2092747]
[1739470827282,0.001,95559.0,95554.0,0.2092747]
[1739470827585,0.001,95559.0,95554.0,0.209275]
[1739470827586,0.001,95555.0,95554.0,0.209275]
[1739470828886,0.001,95559.0,95558.0,0.2092663]
[1739470829091,0.0664,95568.0,95558.0,0.3608]
[1739470829284,0.001,95566.0,95565.0,0.2092509]
[1739470829890,0.001,95566.0,95558.0,0.55126762]
[1739470830079,0.001,95559.0,95558.0,0.75989392]
[1739470830387,0.0664,95568.0,95567.0,0.2092466]
[1739470830584,0.0764,95568.0,95567.0,0.5700466]
[1739470830781,0.0774,95568.0,95567.0,0.5700466]
[1739470831981,0.0824,95568.0,95567.0,0.5720466]
[1739470832990,0.04133444,95568.0,95567.0,0.5720466]
[1739470833882,0.33508424,95568.0,95567.0,0.3628]
[1739470834076,0.54432864,95568.0,95567.0,0.001]
[1739470834293,0.54432864,95568.0,95558.0,0.1899846]
[1739470834294,0.33508424,95568.0,95558.0,0.1899846]
[1739470834590,0.001,95559.0,95558.0,0.3992505]
[1739470834885,0.001,95559.0,95558.0,0.20942288]
[1739470835188,0.03033444,95568.0,95567.0,0.2092466]
[1739470835392,0.02433444,95568.0,95567.0,0.2092466]
[1739470835593,0.02733444,95568.0,95567.0,0.2092466]
[1739470835890,0.003,95568.0,95567.0,0.2092466]
[1739470836587,0.004,95568.0,95567.0,0.2092466]
[1739470836783,0.1372,95579.0,95578.0,0.2092225]
[1739470836976,0.4609498,95579.0,95578.0,0.2092225]
[1739470837181,0.1682,95579.0,95578.0,0.2092225]
[1739470838394,0.1692,95579.0,95578.0,0.2092225]
[1739470838991,0.1712,95579.0,95578.0,0.2092225]
[1739470839292,0.0685,95590.0,95589.0,0.2091985]
[1739470839689,0.00156973,95592.0,95591.0,0.2091941]
[1739470839891,0.01156973,95592.0,95591.0,0.2091941]
[1739470840087,0.02297175,95600.0,95599.0,0.2091766]
[1739470840280,0.3608,95626.0,95625.0,0.2091197]
[1739470840590,0.3537498,95626.0,95625.0,0.5699197]
[1739470840980,0.06,95626.0,95625.0,0.5699197]
[1739470841182,0.09,95641.0,95625.0,0.43844]
[1739470841391,0.3637498,95641.0,95636.0,0.2090955]
[1739470841584,0.3637498,95641.0,95630.0,0.18982762]
[1739470841585,0.3637498,95641.0,95634.0,0.2090983]
[1739470842097,0.3637498,95641.0,95630.0,0.18982762]
[1739470842391,0.0656,95640.0,95630.0,0.18982762]
[1739470842597,0.2091168,95627.0,95625.0,0.002]
[1739470842784,0.01,95627.0,95617.0,0.18982762]
[1739470842984,0.3037498,95627.0,95617.0,0.18982762]
[1739470843188,0.3037498,95627.0,95618.0,0.2091344]
[1739470843594,0.3037498,95627.0,95625.0,0.001]
[1739470844188,0.3037498,95627.0,95618.0,0.006]
[1739470844388,0.3037498,95627.0,95622.0,0.2091246]
[1739470845390,0.3037498,95627.0,95618.0,0.013]
[1739470845590,0.3037498,95627.0,95626.0,0.2091175]
[1739470846094,0.01,95627.0,95626.0,0.2091175]
[1739470846595,0.3608,95634.0,95633.0,0.2091022]
[1739470846791,0.6645498,95634.0,95633.0,0.2091022]
[1739470847990,0.6645498,95634.0,95633.0,0.2121022]
[1739470848195,0.3037498,95634.0,95633.0,0.2121022]
[1739470848391,0.3037498,95634.0,95633.0,0.23171874]
[1739470849097,0.11244671,95634.0,95633.0,0.23171874]
[1739470850091,0.11244671,95634.0,95633.0,0.23071874]
[1739470850393,0.11244671,95634.0,95633.0,0.23171874]
[1739470850989,0.11244671,95634.0,95633.0,0.02261654]
[1739470851192,0.47324671,95634.0,95624.0,0.18982762]
[1739470851506,0.2091132,95628.0,95624.0,0.18982762]
[1739470851698,0.2691132,95628.0,95619.0,0.2091325]
[1739470851998,0.2091266,95622.0,95616.0,0.00015689]
[1739470852200,0.03,95622.0,95620.0,0.209129]
[1739470852404,0.13244671,95622.0,95620.0,0.209129]
[1739470853297,0.05,95637.0,95616.0,0.00015689]
[1739470853298,0.05,95637.0,95616.0,0.38047904]
[1739470853499,0.05,95637.0,95636.0,0.5698956]
[1739470853500,0.06,95637.0,95636.0,0.5698956]
[1739470853691,0.1354,95640.0,95639.0,0.2090891]
[1739470854193,0.1454,95640.0,95639.0,0.2090891]
[1739470854593,0.24784671,95640.0,95639.0,0.2090891]
[1739470854994,0.1454,95640.0,95639.0,0.2090891]
[1739470855490,0.0756,95640.0,95639.0,0.2090891]
[1739470856101,0.1407,95653.0,95645.0,0.2090759]
[1739470856301,0.07156911,95646.0,95645.0,0.2090759]
[1739470857295,0.07356911,95646.0,95645.0,0.2090759]
[1739470857502,0.17701582,95646.0,95644.0,0.3608]
[1739470857698,0.17701582,95646.0,95645.0,0.2090759]
[1739470858302,0.07456911,95646.0,95645.0,0.2090759]
[1739470858500,0.17701582,95646.0,95645.0,0.2090759]
[1739470858690,0.17701582,95646.0,95636.0,0.18998451]
[1739470858897,0.17701582,95646.0,95636.0,0.39907931]
[1739470859395,0.17701582,95646.0,95636.0,0.18998451]
[1739470859592,0.2090862,95641.0,95636.0,0.00015689]
[1739470859796,0.0724,95640.0,95636.0,0.00015689]
[1739470860002,0.1024,95640.0,95636.0,0.00015689]
[1739470860198,0.20484671,95640.0,95639.0,0.2090891]
[1739470861488,0.1024,95640.0,95639.0,0.2090891]
[1739470861993,0.00156911,95646.0,95645.0,0.209076]
[1739470862189,0.01156911,95646.0,95645.0,0.569876]
[1739470862397,0.0724,95661.0,95660.0,0.2090432]
[1739470862703,0.1624,95661.0,95660.0,0.2090432]
[1739470863705,0.1674,95661.0,95660.0,0.2100432]
[1739470864397,0.0784,95661.0,95660.0,0.2110432]
[1739470864597,0.0884,95661.0,95660.0,0.2110432]
[1739470864790,0.0884,95661.0,95660.0,0.23002115]
[1739470865604,0.0834,95661.0,95660.0,0.23202115]
[1739470866001,0.08347814,95661.0,95660.0,0.23202115]
[1739470866302,0.08247814,95661.0,95660.0,0.23302115]
[1739470867101,0.01007814,95661.0,95660.0,0.23302115]
[1739470869016,0.0679,95671.0,95670.0,0.2090213]
[1739470869203,0.1102,95686.0,95670.0,0.3608]
[1739470869407,0.57324671,95680.0,95679.0,0.2090017]
[1739470869999,0.21244671,95680.0,95679.0,0.2090017]
[1739470870306,0.111,95680.0,95679.0,0.2090017]
[1739470871012,0.16,95695.0,95686.0,0.2089864]
[1739470871212,0.01156818,95687.0,95686.0,0.5697864]
[1739470872405,0.1323,95699.0,95686.0,0.3608]
[1739470872607,0.03,95699.0,95698.0,0.2089603]
[1739470872808,0.03,95699.0,95698.0,0.2857603]
[1739470873606,0.035,95699.0,95698.0,0.2857603]
[1739470873798,0.005,95699.0,95698.0,0.2857603]
[1739470874004,0.015,95699.0,95698.0,0.2857603]
[1739470874404,0.015,95699.0,95698.0,0.2867603]
[1739470875111,0.015,95699.0,95698.0,0.001]
[1739470875305,0.015,95699.0,95698.0,0.07768]
[1739470875505,0.011,95699.0,95698.0,0.07868]
[1739470876310,0.011,95699.0,95698.0,0.07668]
[1739470876512,0.1617,95714.0,95698.0,0.07668]
[1739470876817,0.01,95715.0,95713.0,0.2089274]
[1739470877003,0.12244671,95715.0,95713.0,0.2089274]
[1739470877512,0.02,95715.0,95713.0,0.2089274]
[1739470877709,0.05,95730.0,95725.0,0.2089008]
[1739470877913,0.05,95730.0,95707.0,0.3608]
[1739470877914,0.12,95730.0,95720.0,0.18881986]
[1739470878208,0.43133901,95730.0,95720.0,0.18881986]
[1739470878409,0.208896,95728.0,95720.0,0.18881986]
[1739470878612,0.11,95728.0,95719.0,0.3608]
[1739470878914,0.11,95728.0,95665.0,0.052258]
[1739470878915,0.4130265,95723.0,95699.0,0.3608]
[1739470879115,0.2089494,95703.0,95699.0,0.3608]
[1739470879312,0.0719,95702.0,95699.0,0.3608]
[1739470879503,0.1919,95702.0,95699.0,0.37970063]
[1739470879811,0.29419,95702.0,95687.0,0.3608]
[1739470880015,0.2089715,95693.0,95687.0,0.3608]
[1739470880210,0.01,95693.0,95692.0,0.2089723]
[1739470880405,0.01,95693.0,95686.0,0.2089855]
[1739470880406,0.11229,95693.0,95686.0,0.2089855]
[1739470880708,0.11229,95693.0,95686.0,0.01923569]
[1739470880907,0.11229,95693.0,95685.0,0.00015671]
[1739470881311,0.11229,95693.0,95685.0,0.20914311]
[1739470881518,0.3212615,95693.0,95685.0,0.20914311]
[1739470881908,0.3212615,95693.0,95687.0,0.2089836]
[1739470882217,0.11229,95693.0,95687.0,0.002]
[1739470882517,0.5697807,95689.0,95687.0,0.002]
[1739470882713,0.6897807,95689.0,95685.0,0.00015671]
[1739470883016,0.58309,95689.0,95685.0,0.00315671]
[1739470883316,0.2089821,95688.0,95686.0,0.001]
[1739470883611,0.2089971,95682.0,95679.0,0.00156734]
[1739470883915,0.2089978,95681.0,95679.0,0.00156734]
[1739470884115,0.3712878,95681.0,95679.0,0.00156734]
[1739470884620,0.3608,95680.0,95651.0,0.2188]
[1739470884808,0.3608,95654.0,95645.0,1.13494]
[1739470885008,0.3708,95654.0,95652.0,0.2090592]
[1739470885312,0.11229,95654.0,95652.0,0.2090592]
[1739470885707,0.11229,95654.0,95652.0,0.01893643]
[1739470885914,0.11229,95654.0,95643.0,0.20670163]
[1739470886107,0.2090699,95648.0,95645.0,0.2090756]
[1739470886309,0.2190699,95648.0,95645.0,0.2090756]
[1739470886504,0.11229,95648.0,95646.0,0.2090722]
[1739470886913,0.11229,95648.0,95643.0,0.41578203]
[1739470887117,0.3608,95647.0,95643.0,0.21070163]
[1739470887416,0.4708,95647.0,95645.0,0.2130757]
[1739470887717,0.57309,95647.0,95646.0,0.002]
[1739470888606,0.57309,95647.0,95645.0,0.004]
[1739470888807,0.2090783,95644.0,95643.0,0.003]
[1739470889012,0.12,95644.0,95643.0,0.008]
[1739470889215,0.22229,95644.0,95643.0,0.008]
[1739470889720,0.22229,95644.0,95643.0,0.003]
[1739470890423,0.22229,95644.0,95640.0,0.0001568]
[1739470890623,0.2090849,95641.0,95640.0,0.0001568]
[1739470890924,0.12,95641.0,95640.0,0.2092438]
[1739470891114,0.22229,95641.0,95640.0,0.2092438]
[1739470891820,0.22229,95641.0,95640.0,0.2132438]
[1739470892319,0.22229,95641.0,95640.0,0.2192438]
[1739470892521,0.3608,95672.0,95655.0,0.2090543]
[1739470892715,0.15229,95656.0,95655.0,0.2090543]
[1739470893014,0.02,95671.0,95658.0,0.2090477]
[1739470893211,0.0301568,95659.0,95658.0,0.2090477]
[1739470894317,0.0311568,95659.0,95658.0,0.2090477]
[1739470894713,0.0311568,95659.0,95658.0,0.5698477]
[1739470894916,0.0301568,95659.0,95658.0,0.5758477]
[1739470895519,0.01,95674.0,95658.0,0.3648]
[1739470895824,0.13229,95674.0,95673.0,0.2090149]
[1739470897118,0.13229,95674.0,95673.0,0.22883956]
[1739470897720,0.11229,95674.0,95673.0,0.01982466]
[1739470897917,0.11229,95674.0,95672.0,0.2090167]
[1739470898126,0.11329,95674.0,95672.0,0.2090167]
[1739470898322,0.011,95674.0,95672.0,0.22831477]
[1739470898522,0.011,95674.0,95673.0,0.2090149]
[1739470898829,1e-08,95678.0,95677.0,0.2090062]
[1739470899021,0.01000001,95678.0,95677.0,0.2090062]
[1739470900430,0.00015582,95683.0,95674.0,0.3608]
[1739470900624,0.01015582,95683.0,95682.0,0.2089953]
[1739470901327,0.01015582,95683.0,95677.0,0.209006]
[1739470901626,0.3608,95678.0,95673.0,0.18881986]
[1739470901826,0.3708,95678.0,95673.0,0.18881986]
[1739470902031,0.47309,95678.0,95676.0,0.2090083]
[1739470902623,0.2090098,95676.0,95673.0,0.18881986]
[1739470902931,0.2190098,95676.0,95673.0,0.2090147]
[1739470903119,0.11229,95676.0,95675.0,0.2090106]
[1739470903517,0.01,95676.0,95675.0,0.2090106]
[1739470905034,0.01,95676.0,95675.0,0.2130106]
[1739470905229,0.0895,95698.0,95676.0,0.0522519]
[1739470905430,0.31179,95698.0,95696.0,0.2089644]
[1739470905733,0.31179,95698.0,95695.0,0.2089662]
[1739470906528,0.31179,95698.0,95697.0,0.2089625]
[1739470906724,0.22329,95698.0,95697.0,0.2089625]
[1739470908236,0.22229,95698.0,95697.0,0.2089625]
[1739470908439,0.22329,95698.0,95697.0,0.2089625]
[1739470909033,0.12,95698.0,95697.0,0.2089625]
[1739470909236,0.012,95698.0,95697.0,0.2089625]
[1739470909832,0.01,95698.0,95697.0,0.2119625]
[1739470912546,0.01,95698.0,95697.0,0.2099625]
[1739470912733,0.01,95698.0,95697.0,0.2119625]
[1739470917129,0.3608,95711.0,95697.0,0.003]
[1739470917337,0.49309,95711.0,95710.0,0.2089341]
[1739470918035,0.49309,95711.0,95710.0,0.22694534]
[1739470918238,0.01965703,95711.0,95710.0,0.22694534]
[1739470918540,0.0927,95721.0,95720.0,0.2089123]
[1739470918745,0.32499,95721.0,95720.0,0.2089123]
[1739470919046,0.68579,95721.0,95720.0,0.2089123]
[1739470920242,0.32499,95721.0,95720.0,0.2099123]
[1739470920447,0.32999,95721.0,95720.0,0.2099123]
[1739470921340,0.2277,95721.0,95720.0,0.2099123]
[1739470921645,0.015,95721.0,95720.0,0.2099123]
[1739470922030,0.11729,95721.0,95720.0,0.001]
[1739470922547,0.2089298,95712.0,95711.0,0.00015671]
[1739470922738,0.4208,95712.0,95711.0,0.00015671]
[1739470922934,0.52309,95712.0,95711.0,0.00015671]
[1739470924646,0.52609,95712.0,95711.0,0.00015671]
[1739470926143,0.16529,95712.0,95711.0,0.00015671]
[1739470926451,0.063,95712.0,95711.0,0.36095671]
[1739470928254,0.05175953,95712.0,95711.0,0.36095671]
[1739470928653,0.15404953,95712.0,95711.0,0.36095671]
[1739470929042,0.15404953,95712.0,95711.0,0.00015671]
[1739470929447,0.15404953,95712.0,95711.0,0.00715671]
[1739470929647,0.15204953,95712.0,95711.0,0.01415671]
[1739470929844,0.51284953,95712.0,95711.0,0.01415671]
[1739470932455,0.72177943,95712.0,95711.0,0.01415671]
[1739470936654,0.72177943,95712.0,95711.0,0.22308871]
[1739470938359,0.72177943,95712.0,95699.0,0.2089565]
[1739470938360,0.2089628,95700.0,95699.0,0.2089565]
[1739470938556,0.2489628,95700.0,95699.0,0.2089565]
[1739470938754,0.3512528,95700.0,95699.0,0.2089565]
[1739470938959,0.14229,95700.0,95699.0,0.22620476]
[1739470939255,0.3512461,95700.0,95699.0,0.22620476]
[1739470939456,0.3512461,95700.0,95699.0,0.23320476]
[1739470939660,0.3522461,95700.0,95699.0,0.24020476]
[1739470940057,0.3522461,95700.0,95699.0,0.23520476]
[1739470940761,0.3522461,95700.0,95699.0,0.23420476]
[1739470941159,0.3512461,95700.0,95699.0,0.02024826]
[1739470941859,0.3512461,95700.0,95699.0,0.003]
[1739470942569,0.3512461,95700.0,95699.0,0.002]
[1739470944473,0.209003,95682.0,95673.0,0.67456]
[1739470944767,0.01,95682.0,95681.0,0.2089976]
[1739470944954,0.30123209,95682.0,95681.0,0.2089976]
[1739470945157,0.30123209,95682.0,95676.0,0.00156758]
[1739470945158,0.09223669,95682.0,95676.0,0.00156758]
[1739470945354,0.2090063,95677.0,95676.0,0.01934456]
[1739470945564,0.5998063,95677.0,95676.0,0.00556758]
[1739470945767,0.5998063,95677.0,95676.0,0.00956758]
[1739470946371,0.5998063,95677.0,95676.0,0.02713324]
[1739470946566,0.5998063,95677.0,95676.0,0.21857608]
[1739470947159,0.3908,95677.0,95676.0,0.21857608]
[1739470947765,0.3918,95677.0,95676.0,0.00556758]
[1739470947962,0.6008063,95677.0,95676.0,0.0229696]
[1739470948169,0.6008063,95677.0,95676.0,0.00556758]
[1739470948365,0.3918,95677.0,95676.0,0.00556758]
[1739470948568,0.3928,95677.0,95676.0,0.00856758]
[1739470949272,0.3928,95677.0,95676.0,0.02654322]
[1739470949470,0.032,95677.0,95676.0,0.00856758]
[1739470949859,0.032,95677.0,95676.0,0.12166758]
[1739470950063,0.06062204,95699.0,95676.0,0.35807723]
[1739470950264,0.06062204,95699.0,95698.0,0.2089605]
[1739470950265,0.11,95699.0,95698.0,0.2089605]
[1739470950675,0.11,95699.0,95698.0,0.5697605]
[1739470951277,0.111,95699.0,95698.0,0.5697605]
[1739470951966,0.11,95699.0,95698.0,0.5697605]
[1739470952167,0.11,95699.0,95698.0,0.5707605]
[1739470952366,0.111,95699.0,95698.0,0.2099605]
[1739470952761,0.01,95699.0,95698.0,0.2099605]
[1739470953166,0.01,95699.0,95698.0,0.2109605]
[1739470959977,0.01,95699.0,95698.0,0.002]
[1739470961081,0.2189583,95699.0,95698.0,0.002]
[1739470962082,0.01,95699.0,95698.0,0.2109605]
[1739470965383,0.2089384,95709.0,95705.0,0.2089437]
[1739470965681,0.3389384,95709.0,95706.0,0.2089416]
[1739470965881,0.2089409,95707.0,95706.0,0.2089416]
[1739470966084,0.12,95707.0,95706.0,0.22676923]
[1739470966283,0.3289409,95707.0,95706.0,0.01782763]
[1739470966491,0.2089583,95699.0,95698.0,0.3628]
[1739470966782,0.3189583,95699.0,95698.0,0.5707605]
[1739470967284,0.3189583,95699.0,95698.0,0.2099605]
[1739470967984,0.3189583,95699.0,95698.0,0.2089605]
[1739470968185,0.11,95699.0,95698.0,0.22625831]
[1739470968384,0.11,95699.0,95698.0,0.58705831]
[1739470968586,0.15857748,95704.0,95703.0,0.2089496]
[1739470968779,0.20857748,95704.0,95703.0,0.2089496]
[1739470969787,0.20957748,95704.0,95703.0,0.2089496]
[1739470970087,0.21057748,95704.0,95703.0,0.2089496]
[1739470970289,0.052,95704.0,95703.0,0.2089496]
[1739470971379,0.051,95704.0,95703.0,0.2099496]
[1739470971888,0.05,95704.0,95703.0,0.2099496]
[1739470972779,0.02427406,95704.0,95703.0,0.2099496]
[1739470980493,0.38507406,95704.0,95703.0,0.001]
[1739470980793,0.2089955,95682.0,95681.0,0.5697969]
[1739470980992,0.12,95682.0,95681.0,0.5697969]
[1739470981195,0.3289955,95682.0,95681.0,0.5697969]
[1739470981393,0.3289955,95682.0,95681.0,0.58797053]
[1739470981891,0.3299955,95682.0,95681.0,0.5747969]
[1739470982281,0.3309955,95682.0,95681.0,0.2199969]
[1739470985391,0.3309955,95682.0,95672.0,0.00015671]
[1739470985392,0.2090064,95677.0,95672.0,0.20917321]
[1739470985695,0.3290064,95677.0,95672.0,0.00015671]
[1739470985996,0.3290064,95677.0,95676.0,0.21057618]
[1739470986698,0.6898064,95677.0,95676.0,0.00156758]
[1739470986893,0.6898064,95677.0,95672.0,0.00015671]
[1739470986894,0.4808,95677.0,95647.0,0.3608]
[1739470987097,0.2090916,95639.0,95638.0,0.2090915]
[1739470987295,0.3190916,95639.0,95638.0,0.2090915]
[1739470987600,0.3190916,95639.0,95638.0,0.22752341]
[1739470988191,0.3190916,95639.0,95638.0,0.01843191]
[1739470988386,0.3190916,95639.0,95632.0,0.2091045]
[1739470988387,0.2091025,95633.0,95632.0,0.22681111]
[1739470988590,0.12,95633.0,95632.0,0.22681111]
[1739470989898,0.121,95633.0,95632.0,0.23081111]
[1739470990496,0.122,95633.0,95632.0,0.23081111]
[1739470991193,0.122,95633.0,95629.0,0.00015679]
[1739470991401,0.2091091,95630.0,95629.0,0.00015679]
[1739470991595,0.2091091,95630.0,95616.0,0.3608]
[1739470991596,0.12,95630.0,95616.0,0.3608]
[1739470991794,0.2091319,95620.0,95616.0,0.3608]
[1739470991999,0.3291319,95620.0,95616.0,0.3608]
[1739470992199,0.209134,95619.0,95616.0,0.3608]
[1739470992400,0.13,95619.0,95616.0,0.3608]
[1739470992701,0.2091361,95618.0,95616.0,0.3608]
[1739470992894,0.3191361,95618.0,95616.0,0.3608]
[1739470994496,0.3191361,95618.0,95616.0,0.571939]
[1739470994899,0.3191361,95618.0,95616.0,0.569939]
[1739470995102,0.3201361,95618.0,95616.0,0.569939]
[1739470995605,0.3211361,95618.0,95616.0,0.569939]
[1739470998201,0.3211361,95618.0,95616.0,0.209139]
[1739470998608,0.2091375,95617.0,95616.0,0.209139]
[1739470998807,0.3191375,95617.0,95616.0,0.209139]
[1739470999908,0.11,95617.0,95616.0,0.209139]
[1739471000112,0.00015679,95627.0,95615.0,0.3608]
[1739471000309,0.3485,95650.0,95626.0,0.3608]
[1739471000513,0.3485,95650.0,95614.0,0.01765239]
[1739471000514,0.13,95650.0,95649.0,0.2090676]
[1739471001211,0.2090699,95648.0,95643.0,0.2090797]
[1739471001414,0.209085,95641.0,95637.0,0.2090931]
[1739471001628,0.209085,95641.0,95639.0,0.2090891]
[1739471001829,0.005,95650.0,95636.0,0.00015688]
[1739471001830,0.2090719,95648.0,95636.0,0.00015688]
[1739471002033,0.3190719,95648.0,95636.0,0.01858352]
[1739471002220,0.3200719,95648.0,95636.0,0.00015688]
[1739471002415,0.111,95648.0,95636.0,0.00015688]
[1739471002624,0.2090937,95637.0,95636.0,0.00015688]
[1739471002930,0.3190937,95637.0,95636.0,0.00015688]
[1739471003926,0.11,95637.0,95636.0,0.00015688]
[1739471004316,0.11,95637.0,95636.0,0.00315688]
[1739471004824,0.11,95637.0,95636.0,0.00215688]
[1739471005127,0.11,95637.0,95636.0,0.00315688]
[1739471005330,0.11,95637.0,95636.0,0.12685688]
[1739471005530,0.3608,95672.0,95636.0,0.12685688]
[1739471005835,0.12,95652.0,95651.0,0.2090632]
[1739471007232,0.12,95652.0,95651.0,0.2100632]
[1739471007528,0.2090071,95677.0,95654.0,0.2090566]
[1739471007733,0.02,95670.0,95668.0,0.2090255]
[1739471007934,0.03,95670.0,95668.0,0.2090255]
[1739471008737,0.031,95670.0,95668.0,0.003]
[1739471008924,0.2400229,95670.0,95668.0,0.003]
[1739471009434,0.2400229,95670.0,95668.0,0.02139055]
[1739471009637,0.2400229,95670.0,95668.0,0.003]
[1739471010136,0.2300229,95670.0,95668.0,0.003]
[1739471010340,0.2300229,95670.0,95668.0,0.2120257]
[1739471010535,0.2320229,95670.0,95668.0,0.2120257]
[1739471010831,0.023,95670.0,95668.0,0.2120257]
[1739471011034,0.023,95670.0,95668.0,0.2090257]
[1739471011235,0.021,95670.0,95668.0,0.2090257]
[1739471011528,0.2290224,95670.0,95668.0,0.2090257]
[1739471011724,0.2300224,95670.0,95668.0,0.2090257]
[1739471012135,0.2090327,95665.0,95664.0,0.2090331]
[1739471012327,0.3090327,95665.0,95664.0,0.2090331]
[1739471013427,0.2090435,95660.0,95657.0,0.2090484]
[1739471013629,0.3190435,95660.0,95658.0,0.2090476]
[1739471013822,0.3190435,95660.0,95653.0,0.3608]
[1739471013823,0.3190435,95660.0,95659.0,0.20920249]
[1739471014030,0.11,95660.0,95659.0,0.20920249]
[1739471014430,0.11,95660.0,95659.0,0.22698538]
[1739471014734,0.11,95660.0,95659.0,0.22798538]
[1739471015233,0.3190435,95660.0,95659.0,0.21020249]
[1739471015539,0.3190435,95660.0,95659.0,0.22802507]
[1739471016330,0.11,95660.0,95659.0,0.22702507]
[1739471016527,0.11,95660.0,95659.0,0.22802507]
[1739471018231,0.5697755,95692.0,95675.0,0.2090107]
[1739471018541,0.2089758,95691.0,95675.0,0.5698107]
[1739471018736,0.3608,95692.0,95675.0,0.5698107]
[1739471019239,0.2367,95697.0,95678.0,0.2090042]
[1739471019443,0.1191,95697.0,95675.0,0.3608]
[1739471019630,0.2091,95697.0,95696.0,0.2089649]
[1739471020142,0.2091,95697.0,95690.0,0.2089777]
[1739471020331,0.02467338,95697.0,95689.0,0.3608]
[1739471020530,0.2089674,95695.0,95690.0,0.2089777]
[1739471020731,0.3189674,95695.0,95690.0,0.2089777]
[1739471020932,0.3189674,95695.0,95691.0,0.208975]
[1739471021635,0.2089716,95693.0,95691.0,0.0179236]
[1739471021837,0.2389716,95693.0,95683.0,0.36095679]
[1739471022041,0.03,95693.0,95691.0,0.2089754]
[1739471022441,0.2389732,95693.0,95691.0,0.2089754]
[1739471022744,0.03,95693.0,95691.0,0.2089754]
[1739471023240,0.03,95693.0,95691.0,0.22726338]
[1739471023541,0.031,95693.0,95691.0,0.22726338]
[1739471023737,0.033,95693.0,95691.0,0.22726338]
[1739471024534,0.033,95693.0,95691.0,0.01828798]
[1739471024731,0.033,95693.0,95692.0,0.2089736]
[1739471026436,0.031,95693.0,95692.0,0.2089736]
[1739471026639,0.033,95693.0,95692.0,0.2089736]
[1739471033648,0.2419714,95693.0,95692.0,0.2089736]
[1739471033849,0.2419714,95693.0,95691.0,0.01831014]
[1739471033850,0.2089736,95692.0,95691.0,0.01831014]
[1739471034050,0.13,95692.0,95688.0,0.2089802]
[1739471034248,0.13,95692.0,95684.0,0.2089902]
[1739471034448,0.2089853,95687.0,95686.0,0.2089866]
[1739471034652,0.13,95687.0,95686.0,0.2089866]
[1739471035955,0.13,95687.0,95686.0,0.2099866]
[1739471047260,0.3608,95707.0,95706.0,0.2089429]
[1739471047568,0.08,95707.0,95706.0,0.2089429]
[1739471048358,0.087,95707.0,95706.0,0.5697429]
[1739471048962,0.094,95707.0,95706.0,0.5697429]
[1739471050168,0.094,95707.0,95706.0,0.58605263]
[1739471050392,0.00156795,95713.0,95706.0,0.37710973]
[1739471050590,0.12,95713.0,95708.0,0.3608]
[1739471050792,0.12,95713.0,95712.0,0.2089298]
[1739471051496,0.127,95713.0,95708.0,0.3608]
[1739471051682,0.127,95713.0,95711.0,0.2089308]
[1739471052087,0.133,95713.0,95709.0,0.2089364]
[1739471052392,0.13,95713.0,95708.0,0.3608]
[1739471052697,0.2089362,95710.0,95708.0,0.3608]
[1739471052992,0.3389362,95710.0,95708.0,0.3608]
[1739471054089,0.13,95710.0,95708.0,0.5697377]
[1739471054390,0.00076,95725.0,95708.0,0.3608]
[1739471054597,0.01,95725.0,95723.0,0.5697053]
[1739471054798,0.01,95725.0,95724.0,0.1243]